[Event "EYCC Open-U12 2019"]
[Site "Bratislava"]
[Date "2019.08.06"]
[Round "5.18"]
[White "Janeczko, Jakub"]
[Black "Meers, Hubert"]
[Result "0-1"]
[ECO "B19"]
[WhiteElo "1663"]
[BlackElo "2141"]
[Annotator "NA"]
[PlyCount "54"]
[EventDate "2019.08.02"]
[EventType "swiss"]
[EventCountry "SVK"]
[SourceTitle "playchess.com"]
[Source "ChessBase"]
[SourceQuality "1"]
[TimeControl "40/5400+30:1800+30"]

1. e4 {[%emt 0:00:00]} c6 {[%emt 0:00:00]} 2. d4 {[%emt 0:00:29]} d5 {[%emt 0:00:00]} 3. Nc3 {[%emt 0:00:05]} dxe4 {[%emt 0:00:00]} 4. Nxe4 {[%emt 0:00:08]} Bf5 {[%emt 0:00:03]} 5. Ng3 {[%emt 0:00:09]} Bg6 {[%emt 0:00:05]} 6. h4 {[%emt 0:00:15]} h6 {[%emt 0:00:04]} 7. Nf3 {[%emt 0:00:05]} Nd7 {[%emt 0:00:02]} 8. h5 {[%emt 0:00:07]} Bh7 {[%emt 0:00:04]} 9. Bd3 {[%emt 0:00:06]} Bxd3 {[%emt 0:00:03]} 10. Qxd3 {[%emt 0:00:06]} e6 {[%emt 0:00:08]} 11. Bf4 {[%emt 0:03:26]} Qa5+ {[%emt 0:01:21]} 12. c3 {[%emt 0:01:39]} Ngf6 {[%emt 0:01:41]} 13. Ne4 {[%emt 0:04:27]} Nxe4 {[%emt 0:08:28]} 14. Qxe4 {[%emt 0:00:02]} Nf6 {[%emt 0:00:16]} 15. Qe5 {[%emt 0:04:46]} Qb6 {[%emt 0:06:10]} 16. O-O-O {[%emt 0:06:00]} Rd8 {[%emt 0:00:15]} 17. Qe2 {[%emt 0:04:54]} Be7 {[%emt 0:00:20]} 18. Ne5 {[%emt 0:02:49]} O-O {[%emt 0:00:49]} 19. Ng6 {[%emt 0:06:40]} fxg6 {[%emt 0:12:57]} 20. Qxe6+ {[%emt 0:00:07]} Kh8 {[%emt 0:00:03]} 21. hxg6 {[%emt 0:07:11]} Rde8 {[%emt 0:00:29]} 22. Bxh6 {[%emt 0:05:45]} gxh6 {[%emt 0:00:27]} 23. Rxh6+ {[%emt 0:00:01]} Kg7 {[%emt 0:00:09]} 24. Rdh1 {[%emt 0:00:02]} Qxb2+ {[%emt 0:00:43]} 25. Kd1 {[%emt 0:00:20]} Qb1+ {[%emt 0:00:46]} 26. Kd2 {[%emt 0:01:21]} Ne4+ {[%emt 0:00:23]} 27. Ke2 {[%emt 0:00:08]} Rxf2+ {[%emt 0:00:10]} 0-1

[Event "EYCC Open-U12 2019"]
[Site "Bratislava"]
[Date "2019.08.06"]
[Round "5.19"]
[White "Han, Yichen"]
[Black "Georgiev, Konstantin"]
[Result "1-0"]
[ECO "B33"]
[WhiteElo "2217"]
[BlackElo "1919"]
[Annotator "NA"]
[PlyCount "85"]
[EventDate "2019.08.02"]
[EventType "swiss"]
[EventCountry "SVK"]
[SourceTitle "playchess.com"]
[Source "ChessBase"]
[SourceQuality "1"]
[TimeControl "40/5400+30:1800+30"]

1. e4 {[%emt 0:00:00]} c5 {[%emt 0:00:00]} 2. Nf3 {[%emt 0:00:00]} Nc6 {[%emt 0:00:00]} 3. d4 {[%emt 0:00:00]} cxd4 {[%emt 0:00:00]} 4. Nxd4 {[%emt 0:00:00]} Nf6 {[%emt 0:00:00]} 5. Nc3 {[%emt 0:00:00]} e6 {[%emt 0:00:00]} 6. Nxc6 {[%emt 0:00:25]} bxc6 {[%emt 0:00:06]} 7. e5 {[%emt 0:00:05]} Nd5 {[%emt 0:00:03]} 8. Ne4 {[%emt 0:00:08]} Qc7 {[%emt 0:00:04]} 9. f4 {[%emt 0:00:12]} Qb6 {[%emt 0:00:03]} 10. c4 {[%emt 0:00:25]} Bb4+ {[%emt 0:00:18]} 11. Ke2 {[%emt 0:00:10]} f5 {[%emt 0:00:04]} 12. exf6 {[%emt 0:00:13]} Nxf6 {[%emt 0:00:07]} 13. Be3 {[%emt 0:00:35]} Qc7 {[%emt 0:00:29]} 14. Nxf6+ {[%emt 0:00:38]} gxf6 {[%emt 0:00:07]} 15. Kf2 {[%emt 0:01:11]} Be7 {[%emt 0:34:35]} 16. Bd3 {[%emt 0:05:27]} Qa5 {[%emt 0:02:22]} 17. c5 {[%emt 0:03:34]} Rb8 {[%emt 0:01:40]} 18. b3 {[%emt 0:01:46]} Ba6 {[%emt 0:01:35]} 19. Qh5+ {[%emt 0:02:17]} Kd8 {[%emt 0:01:34]} 20. Rhd1 {[%emt 0:00:35]} f5 {[%emt 0:06:00]} 21. Bxa6 {[%emt 0:04:05]} Qxa6 {[%emt 0:01:31]} 22. Qf7 {[%emt 0:01:11]} Re8 {[%emt 0:02:44]} 23. Kf3 {[%emt 0:05:09]} Kc7 {[%emt 0:00:54]} 24. Bd4 {[%emt 0:01:29]} Rbd8 {[%emt 0:02:23]} 25. Be5+ {[%emt 0:02:41]} Kc8 {[%emt 0:00:03]} 26. Rd2 {[%emt 0:03:34]} Qb7 {[%emt 0:22:24]} 27. Rad1 {[%emt 0:02:31]} Qb4 {[%emt 0:00:25]} 28. Rd4 {[%emt 0:15:31]} Qc3+ {[%emt 0:02:38]} 29. R4d3 {[%emt 0:00:56]} Qc2 {[%emt 0:01:56]} 30. Rxd7 {[%emt 0:08:04]} Qe4+ {[%emt 0:00:14]} 31. Kf2 {[%emt 0:00:10]} Qc2+ {[%emt 0:00:38]} 32. Ke1 {[%emt 0:00:24]} Qe4+ {[%emt 0:03:40]} 33. Kf1 {[%emt 0:00:16]} Rxd7 {[%emt 0:01:07]} 34. Qxe8+ {[%emt 0:00:04]} Rd8 {[%emt 0:00:01]} 35. Rxd8+ {[%emt 0:00:11]} Bxd8 {[%emt 0:00:05]} 36. Qxe6+ {[%emt 0:00:08]} Kb7 {[%emt 0:00:01]} 37. Qd7+ {[%emt 0:00:08]} Ka6 {[%emt 0:00:05]} 38. Qc8+ {[%emt 0:00:04]} Kb5 {[%emt 0:00:05]} 39. Qxd8 {[%emt 0:01:39]} Qb1+ {[%emt 0:00:06]} 40. Kf2 {[%emt 0:00:00]} Qc2+ {[%emt 0:00:00]} 41. Kg3 {[%emt 0:00:12]} Qe4 {[%emt 0:00:30]} 42. Qd2 {[%emt 0:01:09]} h5 {[%emt 0:00:12]} 43. h4 {[%emt 0:00:13]} 1-0

[Event "EYCC Open-U12 2019"]
[Site "Bratislava"]
[Date "2019.08.06"]
[Round "5.20"]
[White "Culum, Sanjin"]
[Black "Celik, Hasan Huseyin"]
[Result "1/2-1/2"]
[ECO "C17"]
[WhiteElo "1912"]
[BlackElo "1903"]
[Annotator "NA"]
[PlyCount "77"]
[EventDate "2019.08.02"]
[EventType "swiss"]
[EventCountry "SVK"]
[SourceTitle "playchess.com"]
[Source "ChessBase"]
[SourceQuality "1"]
[TimeControl "40/5400+30:1800+30"]

1. e4 {[%emt 0:00:00]} e6 {[%emt 0:00:00]} 2. d4 {[%emt 0:00:00]} d5 {[%emt 0:00:00]} 3. Nc3 {[%emt 0:00:00]} Bb4 {[%emt 0:00:00]} 4. e5 {[%emt 0:00:00]} c5 {[%emt 0:00:00]} 5. Bd2 {[%emt 0:00:00]} Ne7 {[%emt 0:00:00]} 6. a3 {[%emt 0:00:18]} Bxc3 {[%emt 0:00:01]} 7. Bxc3 {[%emt 0:00:06]} b6 {[%emt 0:00:06]} 8. Nf3 {[%emt 0:02:25]} Ba6 {[%emt 0:00:56]} 9. Bxa6 {[%emt 0:01:07]} Nxa6 {[%emt 0:00:02]} 10. Qd3 {[%emt 0:02:23]} Nb8 {[%emt 0:01:16]} 11. O-O-O {[%emt 0:07:30]} Nd7 {[%emt 0:01:53]} 12. h4 {[%emt 0:03:22]} Qc7 {[%emt 0:02:39]} 13. Rhe1 {[%emt 0:02:39]} Rc8 {[%emt 0:03:08]} 14. Kb1 {[%emt 0:03:39]} Nc6 {[%emt 0:10:32]} 15. Qe3 {[%emt 0:14:18]} h6 {[%emt 0:05:55]} 16. g4 {[%emt 0:03:46]} cxd4 {[%emt 0:03:30]} 17. Nxd4 {[%emt 0:00:26]} Nxd4 {[%emt 0:05:23]} 18. Qxd4 {[%emt 0:00:29]} Qc4 {[%emt 0:01:14]} 19. Qxc4 {[%emt 0:02:09]} Rxc4 {[%emt 0:00:06]} 20. Rd4 {[%emt 0:00:10]} Rxd4 {[%emt 0:00:13]} 21. Bxd4 {[%emt 0:00:08]} h5 {[%emt 0:00:04]} 22. Rg1 {[%emt 0:03:52]} hxg4 {[%emt 0:00:37]} 23. Rxg4 {[%emt 0:00:05]} g6 {[%emt 0:00:05]} 24. Kc1 {[%emt 0:01:21]} Nb8 {[%emt 0:01:46]} 25. Kd2 {[%emt 0:01:18]} Nc6 {[%emt 0:00:14]} 26. Kd3 {[%emt 0:00:51]} Ne7 {[%emt 0:00:22]} 27. f3 {[%emt 0:00:50]} Rh5 {[%emt 0:03:20]} 28. c3 {[%emt 0:03:05]} Kd7 {[%emt 0:00:21]} 29. Rf4 {[%emt 0:00:52]} Nf5 {[%emt 0:00:54]} 30. Bf2 {[%emt 0:00:09]} Kc6 {[%emt 0:02:35]} 31. a4 {[%emt 0:02:28]} Kb7 {[%emt 0:01:02]} 32. c4 {[%emt 0:01:13]} Kc6 {[%emt 0:03:24]} 33. b4 {[%emt 0:00:24]} a6 {[%emt 0:02:55]} 34. b5+ {[%emt 0:00:44]} axb5 {[%emt 0:00:14]} 35. axb5+ {[%emt 0:00:06]} Kc7 {[%emt 0:00:07]} 36. cxd5 {[%emt 0:00:27]} exd5 {[%emt 0:00:11]} 37. Ra4 {[%emt 0:00:18]} Kb7 {[%emt 0:00:45]} 38. Ra6 {[%emt 0:01:42]} d4 {[%emt 0:00:52]} 39. Ra4 {[%emt 0:00:53]} 1/2-1/2

[Event "EYCC Open-U12 2019"]
[Site "Bratislava"]
[Date "2019.08.06"]
[Round "5.21"]
[White "Macias Pino, Diego"]
[Black "Kluehs, Gustaf"]
[Result "1-0"]
[ECO "B24"]
[WhiteElo "2150"]
[BlackElo "1811"]
[Annotator "NA"]
[PlyCount "87"]
[EventDate "2019.08.02"]
[EventType "swiss"]
[EventCountry "SVK"]
[SourceTitle "playchess.com"]
[Source "ChessBase"]
[SourceQuality "1"]
[TimeControl "40/5400+30:1800+30"]

1. e4 c5 2. Nc3 Nc6 3. Bb5 e5 4. Bxc6 dxc6 5. d3 Bd6 6. Nge2 Ne7 7. f4 exf4 8. Bxf4 O-O 9. O-O Ng6 10. Bxd6 Qxd6 11. Ng3 Ne5 12. Nce2 Qh6 13. h3 Re8 14. Nf5 Bxf5 15. Rxf5 Qd6 16. Qe1 Re6 17. Qf2 b6 18. Rf1 f6 19. b3 Nf7 20. Qh4 Re5 21. Ng3 Qd4+ 22. Kh1 Nd6 23. R5f2 Rg5 24. Nh5 Qe5 25. Nf4 Nb5 26. g4 Qe7 27. Nh5 Nd4 28. Rxf6 Rxh5 29. Rf8+ Rxf8 30. Qxe7 Rxf1+ 31. Kg2 Rxh3 32. Kxf1 Rf3+ 33. Kg2 Rf7 34. Qd8+ Rf8 35. Qd7 Nxc2 36. e5 Ne3+ 37. Kg1 h6 38. Qe6+ Kh8 39. g5 Nc2 40. gxh6 gxh6 41. Qxh6+ Kg8 42. e6 Nd4 43. e7 Nf3+ 44. Kh1 1-0

[Event "EYCC Open-U12 2019"]
[Site "Bratislava"]
[Date "2019.08.06"]
[Round "5.22"]
[White "Magold, Filip"]
[Black "Kanov, Nikola"]
[Result "0-1"]
[ECO "C70"]
[WhiteElo "1865"]
[BlackElo "1908"]
[Annotator "NA"]
[PlyCount "90"]
[EventDate "2019.08.02"]
[EventType "swiss"]
[EventCountry "SVK"]
[SourceTitle "playchess.com"]
[Source "ChessBase"]
[SourceQuality "1"]
[TimeControl "40/5400+30:1800+30"]

1. e4 {[%emt 0:00:00]} e5 {[%emt 0:00:00]} 2. Nf3 {[%emt 0:00:00]} Nc6 {[%emt 0:00:00]} 3. Bb5 {[%emt 0:00:00]} a6 {[%emt 0:00:03]} 4. Ba4 {[%emt 0:00:03]} Nge7 {[%emt 0:00:19]} 5. Nc3 {[%emt 0:00:43]} g6 {[%emt 0:00:35]} 6. d4 {[%emt 0:00:55]} Bg7 {[%emt 0:14:59]} 7. d5 {[%emt 0:09:52]} Nd4 {[%emt 0:01:02]} 8. Nxd4 {[%emt 0:05:42]} exd4 {[%emt 0:00:05]} 9. Ne2 {[%emt 0:00:04]} b5 {[%emt 0:01:11]} 10. Bb3 {[%emt 0:00:07]} c5 {[%emt 0:00:05]} 11. dxc6 {[%emt 0:14:40]} dxc6 {[%emt 0:00:49]} 12. Bg5 {[%emt 0:00:30]} f6 {[%emt 0:01:58]} 13. Bh4 {[%emt 0:04:54]} c5 {[%emt 0:02:12]} 14. c4 {[%emt 0:02:09]} b4 {[%emt 0:06:30]} 15. O-O {[%emt 0:04:13]} O-O {[%emt 0:01:40]} 16. Nc1 {[%emt 0:00:21]} g5 {[%emt 0:16:25]} 17. Bg3 {[%emt 0:00:11]} f5 {[%emt 0:00:04]} 18. exf5 {[%emt 0:00:41]} Bxf5 {[%emt 0:04:21]} 19. Nd3 {[%emt 0:00:11]} Qb6 {[%emt 0:00:40]} 20. Re1 {[%emt 0:02:33]} Ng6 {[%emt 0:01:34]} 21. Qd2 {[%emt 0:01:31]} h6 {[%emt 0:13:39]} 22. Nxc5 {[%emt 0:17:37]} Qxc5 {[%emt 0:01:38]} 23. Bd6 {[%emt 0:01:16]} Qc6 {[%emt 0:00:56]} 24. Bxf8 {[%emt 0:00:35]} Rxf8 {[%emt 0:00:07]} 25. f3 {[%emt 0:17:49]} Nh4 {[%emt 0:00:34]} 26. Qxb4 {[%emt 0:02:32]} Bh3 {[%emt 0:15:52]} 27. Qe7 {[%emt 0:12:37]} Bxg2 {[%emt 0:06:06]} 28. Qe6+ {[%emt 0:00:17]} Qxe6 {[%emt 0:00:07]} 29. Rxe6 {[%emt 0:00:01]} d3 {[%emt 0:01:22]} 30. Rd6 {[%emt 0:00:20]} Rf4 {[%emt 0:00:55]} 31. Rd8+ {[%emt 0:01:15]} Kh7 {[%emt 0:00:10]} 32. h3 {[%emt 0:00:47]} Bxf3 {[%emt 0:05:01]} 33. Rxd3 {[%emt 0:00:50]} Bd4+ {[%emt 0:00:12]} 34. Kh2 {[%emt 0:00:29]} Be2 {[%emt 0:00:16]} 35. Rxd4 {[%emt 0:00:47]} Rxd4 {[%emt 0:00:26]} 36. Rc1 {[%emt 0:00:20]} Bf3 {[%emt 0:01:34]} 37. Rc2 {[%emt 0:01:00]} Bd1 {[%emt 0:01:29]} 38. Rc3 {[%emt 0:00:29]} Rd2+ {[%emt 0:00:09]} 39. Kg1 {[%emt 0:00:11]} Bf3 {[%emt 0:01:25]} 40. Kf1 {[%emt 0:00:00]} Bc6 {[%emt 0:00:00]} 41. Re3 {[%emt 0:00:50]} Nf5 {[%emt 0:04:57]} 42. Re5 {[%emt 0:00:33]} Nd4 {[%emt 0:00:10]} 43. Re3 {[%emt 0:00:12]} Rxb2 {[%emt 0:01:09]} 44. c5 {[%emt 0:00:38]} Bb5+ {[%emt 0:01:08]} 45. Ke1 {[%emt 0:00:06]} Nc2+ {[%emt 0:00:37]} 0-1

[Event "EYCC Open-U12 2019"]
[Site "Bratislava"]
[Date "2019.08.06"]
[Round "5.23"]
[White "Ristic, Luka"]
[Black "Hagner, Bennet"]
[Result "1-0"]
[ECO "C48"]
[WhiteElo "2113"]
[BlackElo "1831"]
[Annotator "NA"]
[PlyCount "103"]
[EventDate "2019.08.02"]
[EventType "swiss"]
[EventCountry "SVK"]
[SourceTitle "playchess.com"]
[Source "ChessBase"]
[SourceQuality "1"]
[TimeControl "40/5400+30:1800+30"]

1. e4 {[%emt 0:00:00]} e5 {[%emt 0:00:00]} 2. Nf3 {[%emt 0:00:00]} Nc6 {[%emt 0:00:00]} 3. Nc3 {[%emt 0:00:01]} Nf6 {[%emt 0:00:00]} 4. Bb5 {[%emt 0:00:11]} Nd4 {[%emt 0:00:02]} 5. Bc4 {[%emt 0:00:45]} Bc5 {[%emt 0:00:17]} 6. d3 {[%emt 0:01:43]} d6 {[%emt 0:00:35]} 7. Nxd4 {[%emt 0:04:00]} Bxd4 {[%emt 0:01:35]} 8. Ne2 {[%emt 0:02:38]} Bb6 {[%emt 0:01:16]} 9. O-O {[%emt 0:00:50]} h6 {[%emt 0:04:49]} 10. Kh1 {[%emt 0:04:34]} Ng4 {[%emt 0:04:22]} 11. f3 {[%emt 0:16:39]} Nxh2 {[%emt 0:02:33]} 12. g3 {[%emt 0:01:02]} Nxf1 {[%emt 0:00:25]} 13. Qxf1 {[%emt 0:00:03]} Qf6 {[%emt 0:01:27]} 14. a4 {[%emt 0:02:33]} a5 {[%emt 0:00:37]} 15. Bd2 {[%emt 0:00:21]} Be6 {[%emt 0:00:23]} 16. g4 {[%emt 0:01:12]} Bxc4 {[%emt 0:01:01]} 17. dxc4 {[%emt 0:00:04]} Qe6 {[%emt 0:01:44]} 18. Ng3 {[%emt 0:00:41]} g6 {[%emt 0:00:53]} 19. c3 {[%emt 0:01:52]} O-O-O {[%emt 0:02:02]} 20. b4 {[%emt 0:00:13]} h5 {[%emt 0:01:31]} 21. gxh5 {[%emt 0:07:01]} Rxh5+ {[%emt 0:21:01]} 22. Nxh5 {[%emt 0:00:55]} Rh8 {[%emt 0:00:07]} 23. c5 {[%emt 0:01:14]} Rxh5+ {[%emt 0:00:07]} 24. Kg1 {[%emt 0:00:06]} dxc5 {[%emt 0:01:00]} 25. bxa5 {[%emt 0:00:06]} Bxa5 {[%emt 0:00:58]} 26. Qb5 {[%emt 0:09:22]} Bb6 {[%emt 0:02:50]} 27. a5 {[%emt 0:04:18]} Ba7 {[%emt 0:00:09]} 28. Be3 {[%emt 0:03:23]} c6 {[%emt 0:01:38]} 29. Qf1 {[%emt 0:01:13]} Qb3 {[%emt 0:02:21]} 30. a6 {[%emt 0:08:34]} b5 {[%emt 0:06:09]} 31. Qf2 {[%emt 0:09:55]} Qe6 {[%emt 0:04:11]} 32. Qg2 {[%emt 0:05:49]} Kc7 {[%emt 0:08:58]} 33. Rd1 {[%emt 0:05:33]} Qe7 {[%emt 0:10:49]} 34. Qd2 {[%emt 0:01:20]} f5 {[%emt 0:00:54]} 35. Qa2 {[%emt 0:01:32]} c4 {[%emt 0:07:13]} 36. Bxa7 {[%emt 0:01:18]} Qg5+ {[%emt 0:00:09]} 37. Qg2 {[%emt 0:00:05]} Qf4 {[%emt 0:02:51]} 38. Qf2 {[%emt 0:01:30]} Qg5+ {[%emt 0:01:11]} 39. Kf1 {[%emt 0:00:15]} Rh1+ {[%emt 0:00:31]} 40. Ke2 {[%emt 0:00:00]} Rxd1 {[%emt 0:00:00]} 41. Kxd1 {[%emt 0:01:24]} fxe4 {[%emt 0:00:52]} 42. Qb6+ {[%emt 0:02:06]} Kd6 {[%emt 0:00:47]} 43. Bb8+ {[%emt 0:02:18]} Kd5 {[%emt 0:00:15]} 44. fxe4+ {[%emt 0:02:11]} Kxe4 {[%emt 0:00:08]} 45. Qxc6+ {[%emt 0:00:20]} Ke3 {[%emt 0:01:31]} 46. Ba7+ {[%emt 0:00:06]} Kf4 {[%emt 0:00:06]} 47. Qd5 {[%emt 0:00:42]} Qg4+ {[%emt 0:00:34]} 48. Kc1 {[%emt 0:00:30]} g5 {[%emt 0:00:48]} 49. Bd4 {[%emt 0:01:01]} e4 {[%emt 0:00:19]} 50. Qf7+ {[%emt 0:01:03]} Kg3 {[%emt 0:00:10]} 51. Qf2+ {[%emt 0:00:07]} Kh3 {[%emt 0:00:10]} 52. Qf1+ {[%emt 0:00:33]} 1-0

[Event "EYCC Open-U12 2019"]
[Site "Bratislava"]
[Date "2019.08.06"]
[Round "5.25"]
[White "Guia, Artur Solovyov Eloy"]
[Black "Palczert, Matyas"]
[Result "0-1"]
[ECO "A05"]
[WhiteElo "1790"]
[BlackElo "2065"]
[Annotator "NA"]
[PlyCount "74"]
[EventDate "2019.08.02"]
[EventType "swiss"]
[EventCountry "SVK"]
[SourceTitle "playchess.com"]
[Source "ChessBase"]
[SourceQuality "1"]
[TimeControl "40/5400+30:1800+30"]

1. Nf3 {[%emt 0:00:00]} Nf6 {[%emt 0:00:00]} 2. b3 {[%emt 0:00:00]} e6 {[%emt 0:00:15]} 3. Bb2 {[%emt 0:00:00]} d5 {[%emt 0:00:34]} 4. e3 {[%emt 0:00:13]} Be7 {[%emt 0:00:29]} 5. c4 {[%emt 0:00:39]} O-O {[%emt 0:04:59]} 6. Nc3 {[%emt 0:00:07]} b6 {[%emt 0:06:15]} 7. Be2 {[%emt 0:01:36]} Bb7 {[%emt 0:00:50]} 8. O-O {[%emt 0:00:41]} Nbd7 {[%emt 0:01:58]} 9. Rc1 {[%emt 0:01:33]} c5 {[%emt 0:06:25]} 10. cxd5 {[%emt 0:02:11]} Nxd5 {[%emt 0:01:44]} 11. d4 {[%emt 0:06:50]} N7f6 {[%emt 0:08:07]} 12. Nxd5 {[%emt 0:13:19]} Nxd5 {[%emt 0:03:46]} 13. dxc5 {[%emt 0:00:15]} Bxc5 {[%emt 0:02:33]} 14. Nd4 {[%emt 0:00:43]} Qg5 {[%emt 0:09:12]} 15. Bf3 {[%emt 0:05:18]} Ba6 {[%emt 0:03:43]} 16. Re1 {[%emt 0:22:15]} Bb4 {[%emt 0:01:14]} 17. Bxd5 {[%emt 0:01:14]} Qxd5 {[%emt 0:00:34]} 18. Bc3 {[%emt 0:00:12]} Bxc3 {[%emt 0:01:03]} 19. Rxc3 {[%emt 0:00:05]} Qa5 {[%emt 0:06:25]} 20. Qa1 {[%emt 0:07:04]} Bb7 {[%emt 0:05:09]} 21. Nf3 {[%emt 0:05:19]} Bxf3 {[%emt 0:02:44]} 22. gxf3 {[%emt 0:00:06]} Rad8 {[%emt 0:00:59]} 23. Qb2 {[%emt 0:04:30]} Qh5 {[%emt 0:07:38]} 24. Qe2 {[%emt 0:02:24]} f5 {[%emt 0:05:21]} 25. f4 {[%emt 0:01:07]} Qh4 {[%emt 0:06:06]} 26. Rd1 {[%emt 0:02:59]} h6 {[%emt 0:01:35]} 27. Rxd8 {[%emt 0:00:39]} Qxd8 {[%emt 0:00:14]} 28. Qc2 {[%emt 0:02:35]} Kh7 {[%emt 0:02:05]} 29. Qe2 {[%emt 0:10:49]} Qd5 {[%emt 0:01:37]} 30. h4 {[%emt 0:04:58]} e5 {[%emt 0:02:58]} 31. Rc4 {[%emt 0:02:06]} b5 {[%emt 0:02:02]} 32. Rb4 {[%emt 0:01:02]} Rc8 {[%emt 0:01:13]} 33. f3 {[%emt 0:00:56]} Rc1+ {[%emt 0:00:49]} 34. Kf2 {[%emt 0:00:04]} Qc6 {[%emt 0:02:50]} 35. Qxb5 {[%emt 0:01:46]} Rc2+ {[%emt 0:00:26]} 36. Ke1 {[%emt 0:00:28]} Qc3+ {[%emt 0:00:17]} 37. Kf1 {[%emt 0:00:23]} Qa1# {[%emt 0:00:08]} 0-1

[Event "EYCC Open-U12 2019"]
[Site "Bratislava"]
[Date "2019.08.06"]
[Round "5.26"]
[White "Bialiauski, Artsiom"]
[Black "Tran, David"]
[Result "1/2-1/2"]
[ECO "E61"]
[WhiteElo "1784"]
[BlackElo "2112"]
[Annotator "NA"]
[PlyCount "106"]
[EventDate "2019.08.02"]
[EventType "swiss"]
[EventCountry "SVK"]
[SourceTitle "playchess.com"]
[Source "ChessBase"]
[SourceQuality "1"]
[TimeControl "40/5400+30:1800+30"]

1. d4 {[%emt 0:00:00]} Nf6 {[%emt 0:00:00]} 2. c4 {[%emt 0:00:00]} g6 {[%emt 0:00:00]} 3. Nc3 {[%emt 0:00:48]} Bg7 {[%emt 0:00:00]} 4. Bg5 {[%emt 0:01:45]} O-O {[%emt 0:01:55]} 5. e3 {[%emt 0:01:18]} d6 {[%emt 0:00:15]} 6. Be2 {[%emt 0:02:18]} c5 {[%emt 0:00:16]} 7. d5 {[%emt 0:05:47]} Qb6 {[%emt 0:06:32]} 8. Rb1 {[%emt 0:11:29]} Bf5 {[%emt 0:02:41]} 9. Bd3 {[%emt 0:00:18]} Bxd3 {[%emt 0:01:43]} 10. Qxd3 {[%emt 0:00:06]} Nbd7 {[%emt 0:00:32]} 11. Nf3 {[%emt 0:00:29]} h6 {[%emt 0:08:59]} 12. Bh4 {[%emt 0:03:23]} Ng4 {[%emt 0:02:59]} 13. O-O {[%emt 0:09:13]} f5 {[%emt 0:10:39]} 14. Bg3 {[%emt 0:12:06]} g5 {[%emt 0:07:10]} 15. h3 {[%emt 0:06:25]} Nge5 {[%emt 0:00:04]} 16. Nxe5 {[%emt 0:00:06]} dxe5 {[%emt 0:05:51]} 17. f4 {[%emt 0:00:20]} gxf4 {[%emt 0:01:13]} 18. exf4 {[%emt 0:00:23]} e4 {[%emt 0:01:24]} 19. Qe2 {[%emt 0:02:57]} Bd4+ {[%emt 0:01:16]} 20. Bf2 {[%emt 0:02:08]} e5 {[%emt 0:01:12]} 21. dxe6 {[%emt 0:01:18]} Qxe6 {[%emt 0:02:28]} 22. Nd5 {[%emt 0:00:12]} Qf7 {[%emt 0:11:02]} 23. Rfd1 {[%emt 0:08:11]} Qg7 {[%emt 0:01:15]} 24. Qd2 {[%emt 0:00:16]} Bxf2+ {[%emt 0:03:30]} 25. Qxf2 {[%emt 0:00:33]} Rac8 {[%emt 0:01:09]} 26. Rd2 {[%emt 0:02:25]} Rf7 {[%emt 0:05:03]} 27. Rbd1 {[%emt 0:01:53]} Nf8 {[%emt 0:01:23]} 28. Nc3 {[%emt 0:06:48]} Re7 {[%emt 0:03:06]} 29. Nd5 {[%emt 0:03:24]} Rf7 {[%emt 0:01:35]} 30. Nc3 {[%emt 0:00:44]} Rc6 {[%emt 0:04:04]} 31. Kh2 {[%emt 0:04:18]} Ne6 {[%emt 0:01:53]} 32. Rd5 {[%emt 0:01:20]} Qg6 {[%emt 0:01:46]} 33. Ne2 {[%emt 0:06:13]} Rg7 {[%emt 0:05:28]} 34. g3 {[%emt 0:02:08]} Ra6 {[%emt 0:01:58]} 35. a3 {[%emt 0:01:39]} Rb6 {[%emt 0:00:17]} 36. R1d2 {[%emt 0:00:25]} Rb3 {[%emt 0:00:15]} 37. Re5 {[%emt 0:02:35]} Rd3 {[%emt 0:01:57]} 38. Rxd3 {[%emt 0:01:18]} exd3 {[%emt 0:00:06]} 39. Nc3 {[%emt 0:00:03]} d2 {[%emt 0:02:12]} 40. Re2 {[%emt 0:00:00]} h5 {[%emt 0:00:00]} 41. h4 {[%emt 0:04:25]} Nd4 {[%emt 0:03:28]} 42. Rxd2 {[%emt 0:03:11]} Qg4 {[%emt 0:00:10]} 43. Rd3 {[%emt 0:00:21]} Re7 {[%emt 0:00:28]} 44. Nd5 {[%emt 0:01:49]} Re6 {[%emt 0:02:48]} 45. Re3 {[%emt 0:02:48]} Rd6 {[%emt 0:03:11]} 46. Re8+ {[%emt 0:08:51]} Kf7 {[%emt 0:01:20]} 47. Qe3 {[%emt 0:00:09]} Nf3+ {[%emt 0:02:43]} 48. Kg2 {[%emt 0:00:05]} Nxh4+ {[%emt 0:00:51]} 49. Kf2 {[%emt 0:00:03]} Ng6 {[%emt 0:01:46]} 50. Re7+ {[%emt 0:00:21]} Kf8 {[%emt 0:01:26]} 51. Rxb7 {[%emt 0:00:15]} h4 {[%emt 0:01:06]} 52. gxh4 {[%emt 0:00:29]} Qxh4+ {[%emt 0:01:28]} 53. Qg3 {[%emt 0:00:51]} Qh5 {[%emt 0:02:50]} 1/2-1/2

[Event "EYCC Open-U12 2019"]
[Site "Bratislava"]
[Date "2019.08.06"]
[Round "5.27"]
[White "Tunsjo, Axel"]
[Black "Aleksanyan, Davit"]
[Result "1-0"]
[ECO "B03"]
[WhiteElo "2039"]
[BlackElo "1797"]
[Annotator "NA"]
[PlyCount "49"]
[EventDate "2019.08.02"]
[EventType "swiss"]
[EventCountry "SVK"]
[SourceTitle "playchess.com"]
[Source "ChessBase"]
[SourceQuality "1"]
[TimeControl "40/5400+30:1800+30"]

1. e4 {[%emt 0:00:00]} Nf6 {[%emt 0:00:00]} 2. e5 {[%emt 0:00:03]} Nd5 {[%emt 0:00:00]} 3. d4 {[%emt 0:00:09]} d6 {[%emt 0:00:00]} 4. c4 {[%emt 0:00:12]} Nb6 {[%emt 0:00:00]} 5. exd6 {[%emt 0:00:19]} cxd6 {[%emt 0:00:00]} 6. Nc3 {[%emt 0:01:03]} g6 {[%emt 0:00:07]} 7. Bd3 {[%emt 0:00:56]} Bg7 {[%emt 0:00:13]} 8. Nge2 {[%emt 0:00:19]} Nc6 {[%emt 0:00:27]} 9. Be3 {[%emt 0:00:45]} O-O {[%emt 0:00:09]} 10. a3 {[%emt 0:14:42]} e5 {[%emt 0:06:35]} 11. d5 {[%emt 0:05:40]} Nd4 {[%emt 0:05:54]} 12. Bxd4 {[%emt 0:03:17]} exd4 {[%emt 0:00:12]} 13. Nb5 {[%emt 0:00:01]} Bg4 {[%emt 0:15:09]} 14. f3 {[%emt 0:04:09]} Bxf3 {[%emt 0:11:37]} 15. gxf3 {[%emt 0:04:29]} a6 16. Nxd6 {[%emt 0:02:36]} Qxd6 {[%emt 0:03:11]} 17. O-O {[%emt 0:02:14]} Rfe8 {[%emt 0:04:26]} 18. Rc1 {[%emt 0:01:47]} Nd7 {[%emt 0:00:41]} 19. Ng3 {[%emt 0:04:27]} Re3 {[%emt 0:01:19]} 20. Rc2 {[%emt 0:04:15]} Qf4 {[%emt 0:04:27]} 21. Rg2 {[%emt 0:05:05]} Ne5 {[%emt 0:06:32]} 22. Be4 {[%emt 0:00:21]} Nxc4 {[%emt 0:06:36]} 23. Nh5 {[%emt 0:01:56]} gxh5 {[%emt 0:04:20]} 24. Qxd4 {[%emt 0:00:32]} Ne5 {[%emt 0:02:22]} 25. Bxh7+ {[%emt 0:00:26]} 1-0